bitfinex/quotes_BTCUSD_20250727
["timestamp","ask_amount","ask_price","bid_price","bid_amount"]
[1753595614257,0.53632167,118360.0,118350.0,0.68337518]
[1753595614468,0.53632167,118360.0,118350.0,0.65882567]
[1753595616181,0.53841167,118360.0,118350.0,0.32814028]
[1753595616385,0.53841167,118360.0,118350.0,0.65207518]
[1753595616556,0.53841167,118360.0,118350.0,0.64362567]
[1753595618762,0.36943567,118360.0,118350.0,0.65207518]
[1753595619193,0.36943567,118360.0,118350.0,0.64362567]
[1753595623111,0.53841167,118360.0,118350.0,0.64362567]
[1753595624555,0.53841167,118360.0,118350.0,0.65207518]
[1753595624700,0.53841167,118360.0,118350.0,0.64362567]
[1753595626556,0.53841167,118360.0,118350.0,0.65207518]
[1753595627219,0.53841167,118360.0,118350.0,0.64362567]
[1753595627773,0.53841167,118360.0,118350.0,0.32814028]
[1753595628006,0.53841167,118360.0,118350.0,0.64042567]
[1753595629398,0.36943567,118360.0,118350.0,0.65732462]
[1753595629624,0.35889652,118360.0,118350.0,0.67666462]
[1753595629825,0.37579375,118360.0,118350.0,0.69286462]
[1753595630028,0.37579375,118360.0,118350.0,0.70131399]
[1753595630652,0.36734503,118360.0,118350.0,0.70131399]
[1753595630856,0.37579368,118360.0,118350.0,0.70131399]
[1753595631298,0.37579361,118360.0,118350.0,0.70976328]
[1753595631914,0.37579361,118360.0,118350.0,0.70131399]
[1753595632346,0.38424233,118360.0,118350.0,0.70131399]
[1753595632623,0.37579361,118360.0,118350.0,0.70131399]
[1753595633254,0.37579361,118360.0,118350.0,0.70976328]
[1753595633510,0.37579361,118360.0,118350.0,0.70131399]
[1753595634549,0.38424233,118360.0,118350.0,0.69286462]
[1753595634958,0.38424226,118360.0,118350.0,0.70131399]
[1753595635819,0.38424226,118360.0,118350.0,0.69286462]
[1753595636026,0.38424291,118360.0,118350.0,0.69286462]
[1753595636465,0.38424291,118360.0,118350.0,0.68441518]
[1753595637569,0.38424291,118360.0,118350.0,0.67596567]
[1753595637939,0.38424291,118360.0,118350.0,0.68441518]
[1753595638165,0.37579454,118360.0,118350.0,0.67596567]
[1753595639019,0.37579454,118360.0,118350.0,0.68441518]
[1753595639182,0.37579454,118360.0,118350.0,0.67596567]
[1753595639769,0.37579454,118360.0,118350.0,0.65976567]
[1753595640061,0.37579454,118360.0,118350.0,0.66821518]
[1753595640688,0.37579454,118360.0,118350.0,0.65976567]
[1753595642145,0.37579454,118360.0,118350.0,0.66821518]
[1753595642350,0.37579454,118360.0,118350.0,0.65976567]
[1753595642564,0.37779454,118360.0,118350.0,0.65976567]
[1753595645806,0.54677054,118360.0,118350.0,0.65976567]
[1753595646014,0.53832203,118360.0,118350.0,0.65976567]
[1753595649125,0.53632203,118360.0,118350.0,0.65976567]
[1753595649303,0.36734553,118360.0,118350.0,0.68471518]
[1753595649927,0.37579433,118360.0,118350.0,0.68471518]
[1753595650272,0.37579433,118360.0,118350.0,0.69316462]
[1753595650486,0.002,118360.0,118350.0,1.1021991]
[1753595650721,0.002,118360.0,118350.0,1.11002554]
[1753595651352,0.001,118360.0,118350.0,1.11002554]
[1753595651952,0.37379111,118370.0,118360.0,0.18587352]
[1753595652156,0.37379111,118370.0,118360.0,0.63293891]
[1753595652379,0.37379111,118370.0,118360.0,0.65579891]
[1753595652626,0.38223919,118370.0,118360.0,0.65579891]
[1753595653135,0.38223912,118370.0,118360.0,0.65579891]
[1753595653764,0.37479111,118370.0,118360.0,0.68374756]
[1753595654265,0.37579111,118370.0,118360.0,0.68374756]
[1753595654856,0.37579104,118370.0,118360.0,0.68374756]
[1753595655312,0.38423905,118370.0,118360.0,0.68374756]
[1753595655513,0.38423898,118370.0,118360.0,0.69206231]
[1753595656068,0.38423898,118370.0,118360.0,0.70051089]
[1753595656271,0.38423898,118370.0,118360.0,0.69206231]
[1753595656972,0.38423898,118370.0,118360.0,0.70051089]
[1753595657593,0.38423898,118370.0,118360.0,0.69206231]
[1753595658591,0.38423898,118370.0,118360.0,0.70051089]
[1753595658808,0.37579104,118370.0,118360.0,0.70051089]
[1753595659211,0.37579104,118370.0,118360.0,0.69206231]
[1753595659665,0.38423898,118370.0,118360.0,0.35981352]
[1753595659802,0.37779133,118370.0,118360.0,0.67529891]
[1753595660005,0.37779133,118370.0,118360.0,0.68365439]
[1753595660416,0.37779133,118370.0,118360.0,0.69210304]
[1753595660847,0.37779133,118370.0,118360.0,0.68374756]
[1753595661381,0.36934339,118370.0,118360.0,0.69219614]
[1753595661816,0.36934339,118370.0,118360.0,0.68374756]
[1753595662208,0.36934339,118370.0,118360.0,0.69219614]
[1753595662608,0.36934339,118370.0,118360.0,0.70058297]
[1753595662788,0.36934339,118370.0,118360.0,0.70903148]
[1753595663028,0.36934339,118370.0,118360.0,0.70058297]
[1753595663431,0.342,118370.0,118360.0,0.70058297]
[1753595663647,0.35889523,118370.0,118360.0,0.70903141]
[1753595663833,0.35044751,118370.0,118360.0,0.70903141]
[1753595664037,0.35889523,118370.0,118360.0,0.70903141]
[1753595665416,0.35889523,118370.0,118360.0,0.70903112]
[1753595666571,0.35889523,118370.0,118360.0,0.70058268]
[1753595666816,0.35889523,118370.0,118360.0,0.70903112]
[1753595667023,0.35889523,118370.0,118360.0,0.70058268]
[1753595667443,0.35889523,118370.0,118360.0,0.69219585]
[1753595668431,0.35889523,118370.0,118360.0,0.70064429]
[1753595668689,0.35889523,118370.0,118360.0,0.69219557]
[1753595669126,0.35889523,118370.0,118360.0,0.70064394]
[1753595669796,0.35889523,118370.0,118360.0,0.69219557]
[1753595670216,0.35889516,118370.0,118360.0,0.70064394]
[1753595670676,0.35889516,118370.0,118360.0,0.69219557]
[1753595670934,0.35889516,118370.0,118360.0,0.70064394]
[1753595671115,0.35889516,118370.0,118360.0,0.70064359]
[1753595671319,0.35889516,118370.0,118360.0,0.69219529]
[1753595672395,0.35889516,118370.0,118360.0,0.70060708]
[1753595673042,0.35889516,118370.0,118360.0,0.69215871]
[1753595673486,0.36734288,118370.0,118360.0,0.69215871]
[1753595674313,0.35889516,118370.0,118360.0,0.70060708]
[1753595675492,0.35889516,118370.0,118360.0,0.69215871]
[1753595675701,0.35889516,118370.0,118360.0,0.70060708]
[1753595675908,0.36734296,118370.0,118360.0,0.69215871]
[1753595676553,0.36734296,118370.0,118360.0,0.68371027]
[1753595676749,0.36734296,118370.0,118360.0,0.69215871]
[1753595676949,0.35889516,118370.0,118360.0,0.69215871]
[1753595677401,0.36734288,118370.0,118360.0,0.69215871]
[1753595679512,0.35889516,118370.0,118360.0,0.70060708]
[1753595681749,0.35889516,118370.0,118360.0,0.69215871]
[1753595681952,0.36734296,118370.0,118360.0,0.69215871]
[1753595682161,0.35889516,118370.0,118360.0,0.69215871]
[1753595682420,0.35889516,118370.0,118360.0,0.70905538]
[1753595682646,0.35889516,118370.0,118360.0,0.70060708]
[1753595683193,0.35889516,118370.0,118360.0,0.70905538]
[1753595683427,0.35889516,118370.0,118360.0,0.70060708]
[1753595683708,0.35889516,118370.0,118360.0,0.70905538]
[1753595683851,0.35889516,118370.0,118360.0,0.70060708]
[1753595684255,0.37579082,118370.0,118360.0,0.66721056]
[1753595684455,0.37785082,118370.0,118360.0,0.66721056]
[1753595684831,0.40464082,118370.0,118360.0,0.65576198]
[1753595685042,0.40464075,118370.0,118360.0,0.67265921]
[1753595685243,0.37785075,118370.0,118360.0,0.67265921]
[1753595685440,0.37785075,118370.0,118360.0,0.67588921]
[1753595685849,0.37785075,118370.0,118360.0,0.67265921]
[1753595686279,0.37785075,118370.0,118360.0,0.67265928]
[1753595686490,0.37785075,118370.0,118360.0,0.68110779]
[1753595686691,0.36940288,118370.0,118360.0,0.68110779]
[1753595686893,0.37785075,118370.0,118360.0,0.68110779]
[1753595687945,0.37785075,118370.0,118360.0,0.67265928]
[1753595689513,0.37785075,118370.0,118360.0,0.68110779]
[1753595689744,0.37785075,118370.0,118360.0,0.68433779]
[1753595689952,0.37785075,118370.0,118360.0,0.67588928]
[1753595690164,0.37785075,118370.0,118360.0,0.68110779]
[1753595691015,0.37785075,118370.0,118360.0,0.67265928]
[1753595692248,0.37785075,118370.0,118360.0,0.68110779]
[1753595692657,0.37785075,118370.0,118360.0,0.67265928]
[1753595693044,0.37785075,118370.0,118360.0,0.68433779]
[1753595693045,0.36940288,118370.0,118360.0,0.68433779]
[1753595693285,0.37785075,118370.0,118360.0,0.68433779]
[1753595693492,0.37785068,118370.0,118360.0,0.68433779]
[1753595693692,0.37785068,118370.0,118360.0,0.67588928]
[1753595693899,0.002,118370.0,118360.0,0.77726339]
[1753595694101,0.002,118370.0,118360.0,0.80936339]
[1753595694706,0.01044744,118370.0,118360.0,0.80936339]
[1753595694870,0.002,118370.0,118360.0,0.80936339]
[1753595698521,0.001,118370.0,118360.0,0.80936339]
[1753595699071,0.0253411,118380.0,118370.0,0.18585754]
[1753595699247,0.0253411,118380.0,118370.0,0.63262293]
[1753595699461,0.0275011,118380.0,118370.0,0.65554293]
[1753595700393,0.0295011,118380.0,118370.0,0.65554293]
[1753595702081,0.0295011,118380.0,118370.0,0.655543]
[1753595702280,0.0379484,118380.0,118370.0,0.33160974]
[1753595702454,0.0379484,118380.0,118370.0,0.64709513]
[1753595702662,0.0624784,118380.0,118370.0,0.64709513]
[1753595702899,0.0657184,118380.0,118370.0,0.64709513]
[1753595703728,0.0411884,118380.0,118370.0,0.64709513]
[1753595704103,0.0411884,118380.0,118370.0,0.65554307]
[1753595705270,0.04118833,118380.0,118370.0,0.66399094]
[1753595705479,0.04118833,118380.0,118370.0,0.65554307]
[1753595706116,0.0496357,118380.0,118370.0,0.64709513]
[1753595706523,0.04118833,118380.0,118370.0,0.65554307]
[1753595706703,0.04118833,118380.0,118370.0,0.64709513]
[1753595706929,0.0496357,118380.0,118370.0,0.64709513]
[1753595707055,0.04963563,118380.0,118370.0,0.64709513]
[1753595707259,0.04118876,118380.0,118370.0,0.85001513]
[1753595707682,0.04118876,118380.0,118370.0,0.85846307]
[1753595708347,0.03794876,118380.0,118370.0,0.85846307]
[1753595709418,0.04639613,118380.0,118370.0,0.85001513]
[1753595709734,0.04639613,118380.0,118370.0,0.85846307]
[1753595709932,0.04639613,118380.0,118370.0,0.85001513]
[1753595710532,0.04639613,118380.0,118370.0,0.85846307]
[1753595711307,0.03794876,118380.0,118370.0,0.85001513]
[1753595711521,0.03794876,118380.0,118370.0,0.85846307]
[1753595711937,0.03794876,118380.0,118370.0,0.85001513]
[1753595712160,0.03794876,118380.0,118370.0,0.53452974]
[1753595712527,0.04639613,118380.0,118370.0,0.85001513]
[1753595713422,0.03794905,118380.0,118370.0,0.8500152]
[1753595713693,0.03794905,118380.0,118370.0,0.85846321]
[1753595714197,0.03794905,118380.0,118370.0,0.8500152]
[1753595714711,0.19844935,118380.0,118370.0,0.84156712]
[1753595715477,0.19844935,118380.0,118370.0,0.8500152]
[1753595715732,0.21404935,118380.0,118370.0,0.85846321]
[1753595716234,0.21404935,118380.0,118370.0,0.8500152]
[1753595716484,0.0451019,118380.0,118370.0,0.85846321]
[1753595716695,0.0451019,118380.0,118370.0,0.86691115]
[1753595716926,0.03665453,118380.0,118370.0,0.86691115]
[1753595717172,0.03665453,118380.0,118370.0,0.85846321]
[1753595717420,0.03665453,118380.0,118370.0,0.8500152]
[1753595717618,0.03665453,118380.0,118370.0,0.85846321]
[1753595717926,0.03665453,118380.0,118370.0,0.8500152]
[1753595718229,0.03665453,118380.0,118370.0,0.85846321]
[1753595718579,0.03665453,118380.0,118370.0,0.8500152]
[1753595719264,0.02105453,118380.0,118370.0,0.8530952]
[1753595719834,0.02105453,118380.0,118370.0,0.84464712]
[1753595720755,0.02105453,118380.0,118370.0,0.8530952]
[1753595721102,0.02105453,118380.0,118370.0,0.84464712]
[1753595721556,0.02105453,118380.0,118370.0,0.8530952]
[1753595721760,0.02105453,118380.0,118370.0,0.64172712]
[1753595722447,0.02105453,118380.0,118370.0,0.6501752]
[1753595723880,0.02105453,118380.0,118370.0,0.65862321]
[1753595724324,0.02105453,118380.0,118370.0,0.66707115]
[1753595724539,0.02105453,118380.0,118370.0,0.65862321]
[1753595725777,0.02105453,118380.0,118370.0,0.6501752]
[1753595726190,0.02105453,118380.0,118370.0,0.65862321]
[1753595726403,0.01889453,118380.0,118370.0,0.65862321]
[1753595728346,0.01889453,118380.0,118370.0,0.65846321]
[1753595728957,0.01889453,118380.0,118370.0,0.6500152]
[1753595729198,0.01889453,118380.0,118370.0,0.65846321]
[1753595731840,0.01889453,118380.0,118370.0,0.6500152]
[1753595732910,0.18784198,118380.0,118370.0,0.64156712]
[1753595733114,0.18784198,118380.0,118370.0,0.6499752]
[1753595735309,0.18784198,118380.0,118370.0,0.64152712]
[1753595736632,0.18784198,118380.0,118370.0,0.6499752]
[1753595738071,0.18784198,118380.0,118370.0,0.51248712]
[1753595738300,0.18784198,118380.0,118370.0,0.64152712]
[1753595738587,0.18784198,118380.0,118370.0,0.6499752]
[1753595738819,0.22164525,118380.0,118370.0,0.6499752]
[1753595739299,0.18784198,118380.0,118370.0,0.6499752]
[1753595739677,0.18784198,118380.0,118370.0,0.33448981]
[1753595739894,0.18784198,118380.0,118370.0,0.64152712]
[1753595740124,0.18784198,118380.0,118370.0,0.6499752]
[1753595740301,0.18784198,118380.0,118370.0,0.32604173]
[1753595740478,0.18784198,118380.0,118370.0,0.64997513]
[1753595740718,0.18784198,118380.0,118370.0,0.6499752]
[1753595743070,0.18784198,118380.0,118370.0,0.33448981]
[1753595743283,0.18784198,118380.0,118370.0,0.6499752]
[1753595743794,0.18784198,118380.0,118370.0,0.64152712]
[1753595743995,0.18784198,118380.0,118370.0,0.6499752]
[1753595744208,0.18784198,118380.0,118370.0,0.64152712]
[1753595744753,0.18784198,118380.0,118370.0,0.6499752]
[1753595745960,0.18784198,118380.0,118370.0,0.64152712]
[1753595746242,0.18784198,118380.0,118370.0,0.6499752]
[1753595747107,0.18784198,118380.0,118370.0,0.65842321]
[1753595748109,0.18784198,118380.0,118370.0,0.6499752]
[1753595750007,0.18784198,118380.0,118370.0,0.65842321]
[1753595750419,0.18784198,118380.0,118370.0,0.66687115]
[1753595750636,0.18784198,118380.0,118370.0,0.65842321]
[1753595751407,0.18784198,118380.0,118370.0,0.6499752]
[1753595751824,0.18784198,118380.0,118370.0,0.65842321]
[1753595752243,0.18784198,118380.0,118370.0,0.86134321]
[1753595752798,0.18784198,118380.0,118370.0,0.8528952]
[1753595753197,0.18784198,118380.0,118370.0,0.86134321]
[1753595755933,0.18784198,118380.0,118370.0,0.8528952]
[1753595756769,0.18784198,118380.0,118370.0,0.86134321]
[1753595757080,0.18784198,118380.0,118370.0,0.8528952]
[1753595757584,0.18784198,118380.0,118370.0,0.86134321]
[1753595758393,0.18784198,118380.0,118370.0,0.8528952]
[1753595758591,0.18784198,118380.0,118370.0,0.8527752]
[1753595758845,0.18784198,118380.0,118370.0,0.86122321]
[1753595759025,0.18784198,118380.0,118370.0,0.8527752]
[1753595759645,0.18784198,118380.0,118370.0,0.86122321]
[1753595759826,0.18784198,118380.0,118370.0,0.8527752]
[1753595760489,0.17939475,118380.0,118370.0,0.52884173]
[1753595760699,0.17939475,118380.0,118370.0,0.84432712]
[1753595762352,0.18154475,118380.0,118370.0,0.84432712]
[1753595765656,0.17309745,118380.0,118370.0,0.84428712]
[1753595768573,0.17309745,118380.0,118370.0,0.8527352]
[1753595769621,0.17309745,118380.0,118370.0,0.84428712]
[1753595770101,0.17309745,118380.0,118370.0,0.8527352]
[1753595770750,0.17309745,118380.0,118370.0,0.86118321]
[1753595770961,0.17309745,118380.0,118370.0,0.54569782]
[1753595771169,0.17309745,118380.0,118370.0,0.8527352]
[1753595771645,0.17309745,118380.0,118370.0,0.84428712]
[1753595772435,0.17309745,118380.0,118370.0,0.8527352]
[1753595772665,0.17309745,118380.0,118370.0,0.84428712]
[1753595773860,0.17309745,118380.0,118370.0,0.8527352]
[1753595774494,0.17309745,118380.0,118370.0,0.5209352]
[1753595774754,0.17309745,118380.0,118370.0,0.8526952]
[1753595775361,0.17309745,118380.0,118370.0,0.86114321]
[1753595775563,0.17309745,118380.0,118370.0,0.8526952]
[1753595779541,0.17309745,118380.0,118370.0,0.86114321]
[1753595781292,0.17309745,118380.0,118370.0,0.8526952]
[1753595781503,0.18887745,118380.0,118370.0,0.86114321]
[1753595781701,0.18887745,118380.0,118370.0,0.52938321]
[1753595781917,0.18887745,118380.0,118370.0,0.86110321]
[1753595782129,0.18887745,118380.0,118370.0,0.8526552]
[1753595782548,0.18887745,118380.0,118370.0,0.86110321]
[1753595783919,0.18672745,118380.0,118370.0,0.86110321]
[1753595784246,0.18672745,118380.0,118370.0,0.86955115]
[1753595784455,0.04312139,118380.0,118370.0,0.86955115]
[1753595785300,0.06001556,118380.0,118370.0,0.87799902]
[1753595785502,0.06001556,118380.0,118370.0,0.86955115]
[1753595786325,0.05156833,118380.0,118370.0,0.86955115]
[1753595786905,0.05156819,118380.0,118370.0,0.87799902]
[1753595787095,0.05156819,118380.0,118370.0,0.89359902]
[1753595787301,0.05156812,118380.0,118370.0,0.90204682]
[1753595787746,0.01778,118380.0,118370.0,0.90204682]
[1753595788009,0.01778,118380.0,118370.0,1.00312362]
[1753595789400,0.01678,118380.0,118370.0,1.00312362]
[1753595791407,0.01678,118380.0,118370.0,0.68763823]
[1753595791862,0.01578,118380.0,118370.0,1.00312362]
[1753595792957,0.01578,118380.0,118370.0,0.68763823]
[1753595793173,0.01578,118380.0,118370.0,1.00412362]
[1753595794488,0.01578,118380.0,118370.0,1.31960901]
[1753595794908,0.01578,118380.0,118370.0,1.00412362]
[1753595801766,0.01578,118380.0,118370.0,1.02960875]
[1753595808602,0.01578,118380.0,118370.0,0.71412336]
[1753595808827,0.01578,118380.0,118370.0,1.02960875]
[1753595822088,0.01578,118380.0,118370.0,0.71412336]
[1753595822363,0.01578,118380.0,118370.0,1.02960875]
[1753595827748,0.01578,118380.0,118370.0,0.71412336]
[1753595827923,0.01578,118380.0,118370.0,1.02960875]
[1753595829729,0.01578,118380.0,118370.0,1.01300875]
[1753595842043,0.01578,118380.0,118370.0,1.36114316]
[1753595843066,0.01578,118380.0,118370.0,1.04565777]
[1753595847660,0.01578,118380.0,118370.0,1.36114316]
[1753595850151,0.01578,118380.0,118370.0,1.62664316]
[1753595851019,0.01578,118380.0,118370.0,1.36114316]
[1753595851894,0.01578,118380.0,118370.0,1.36014316]
[1753595852114,0.01578,118380.0,118370.0,1.36214316]
[1753595852345,0.01578,118380.0,118370.0,1.36314316]
[1753595856130,0.01578,118380.0,118370.0,1.62864316]
[1753595862431,0.01578,118380.0,118370.0,1.60315803]
[1753595865135,0.01578,118380.0,118370.0,1.62912117]
[1753595878605,0.01578,118380.0,118370.0,1.50032117]
[1753595878842,0.01578,118380.0,118370.0,1.61352117]
[1753595880677,0.01578,118380.0,118370.0,1.62952117]
[1753595883022,0.01578,118380.0,118370.0,1.61352117]
[1753595887859,0.01578,118380.0,118370.0,1.62872117]
[1753595889502,0.01578,118380.0,118370.0,1.61352117]
[1753595890112,0.01578,118380.0,118370.0,0.98255039]
[1753595890324,0.01578,118380.0,118370.0,1.61352117]
[1753595890682,0.01578,118380.0,118370.0,1.48512117]
[1753595890904,0.01578,118380.0,118370.0,1.61352117]
[1753595895923,0.01578,118380.0,118370.0,1.61348117]
[1753595908005,0.01578,118380.0,118370.0,1.48512117]
[1753595908237,0.01578,118380.0,118370.0,1.61348117]
[1753595913399,0.01578,118380.0,118370.0,1.59788117]
[1753595913628,0.01578,118380.0,118370.0,1.61418117]
[1753595916346,0.01578,118380.0,118370.0,1.48582117]
[1753595916553,0.01578,118380.0,118370.0,1.61414117]
[1753595921726,0.01578,118380.0,118370.0,1.59784117]
[1753595922322,0.01578,118380.0,118370.0,1.28235578]
[1753595927408,0.01578,118380.0,118370.0,1.25639264]
[1753595929981,0.01578,118380.0,118370.0,1.25635264]
[1753595933402,0.01578,118380.0,118370.0,1.28162149]
[1753595936852,0.01578,118380.0,118370.0,1.59710688]
[1753595937100,0.01578,118380.0,118370.0,1.28162149]
[1753595953108,0.01578,118380.0,118370.0,1.61370688]
[1753595954183,0.01578,118380.0,118370.0,1.62922688]
[1753595960290,0.01578,118380.0,118370.0,1.61362688]
[1753595962639,0.01578,118380.0,118370.0,0.9826561]
[1753595962849,0.01578,118380.0,118370.0,1.62269867]
[1753595963072,0.01578,118380.0,118370.0,1.61362688]
[1753595964619,0.01578,118380.0,118370.0,1.59702688]
[1753595968337,0.01578,118380.0,118370.0,1.62972688]
[1753595969424,0.01578,118380.0,118370.0,1.61312688]
[1753595970614,0.01578,118380.0,118370.0,1.59702688]
[1753595973100,0.01578,118380.0,118370.0,1.28154149]
[1753595974089,0.01578,118380.0,118370.0,0.9660561]
[1753595974324,0.01578,118380.0,118370.0,1.28154149]
[1753595979032,0.01578,118380.0,118370.0,0.9660561]
[1753595979238,0.01578,118380.0,118370.0,1.28154149]
[1753595981393,0.01578,118380.0,118370.0,1.61282688]
[1753595981581,0.01578,118380.0,118370.0,1.62802688]
[1753595986948,0.01578,118380.0,118370.0,1.61282688]
[1753595990327,0.01578,118380.0,118370.0,1.59702688]
[1753595992383,0.01578,118380.0,118370.0,1.57175803]
[1753595994318,0.01578,118380.0,118370.0,1.60425803]
[1753595996863,0.01578,118380.0,118370.0,1.6294099]
[1753596003713,0.01578,118380.0,118370.0,1.6131899]
[1753596003938,0.01578,118380.0,118370.0,1.5967899]
[1753596005592,0.01787,118380.0,118370.0,1.5967899]
[1753596008296,0.01787,118380.0,118370.0,1.4687099]
[1753596008512,0.01787,118380.0,118370.0,1.28126451]
[1753596008726,0.01787,118380.0,118370.0,1.5967499]
[1753596010136,0.01787,118380.0,118370.0,1.28126451]
[1753596010424,0.01787,118380.0,118370.0,1.01576451]
[1753596011022,0.01787,118380.0,118370.0,1.3312499]
[1753596015828,0.01787,118380.0,118370.0,1.5967499]
[1753596016860,0.01578,118380.0,118370.0,1.5967499]
[1753596023887,0.01578,118380.0,118370.0,1.6132499]
[1753596028893,0.01578,118380.0,118370.0,0.98227912]
[1753596029111,0.01578,118380.0,118370.0,1.6132499]
[1753596032459,0.01578,118380.0,118370.0,1.5967499]
[1753596057418,0.01578,118380.0,118370.0,1.57159803]
[1753596057618,0.01578,118380.0,118370.0,0.94062725]
[1753596057816,0.01578,118380.0,118370.0,1.57159803]
[1753596060045,0.01578,118380.0,118370.0,1.59740562]
[1753596062816,0.0154662,118380.0,118370.0,1.59740562]
[1753596080686,0.0154662,118380.0,118370.0,1.59728562]
[1753596086973,0.0154662,118380.0,118370.0,0.96631484]
[1753596087192,0.0154662,118380.0,118370.0,1.59728562]
[1753596087376,0.0154662,118380.0,118370.0,1.60635741]
[1753596087584,0.0154662,118380.0,118370.0,1.59728562]
[1753596093009,0.0154662,118380.0,118370.0,1.59724562]
[1753596095102,0.0154662,118380.0,118370.0,1.62784562]
[1753596096003,0.0154662,118380.0,118370.0,1.61274562]
[1753596101355,0.0154662,118380.0,118370.0,1.59724562]
[1753596104743,1e-08,118390.0,118380.0,0.21173772]
[1753596104987,1e-08,118390.0,118380.0,1.40421119]
[1753596105215,1e-08,118390.0,118380.0,1.0832558]
[1753596106288,1e-08,118390.0,118380.0,1.0852558]
[1753596106455,1e-08,118390.0,118380.0,1.0872558]
[1753596110372,1e-08,118390.0,118380.0,1.3527558]
[1753596114670,1e-08,118390.0,118380.0,0.72178502]
[1753596114899,0.05867001,118390.0,118380.0,1.00992041]
[1753596115131,0.05867001,118390.0,118380.0,1.3254058]
[1753596120596,0.05867001,118390.0,118380.0,1.3490058]
[1753596121287,0.05867001,118390.0,118380.0,1.3510358]
[1753596123102,0.03600001,118390.0,118380.0,1.3510358]
[1753596123327,0.03600001,118390.0,118380.0,1.5538758]
[1753596123775,0.03303001,118390.0,118380.0,1.5538758]
[1753596124394,0.03303001,118390.0,118380.0,1.2223158]
[1753596124545,0.03303001,118390.0,118380.0,1.5543158]
[1753596126854,0.03303001,118390.0,118380.0,1.5572758]
[1753596127928,0.01753001,118390.0,118380.0,1.5572758]
[1753596129237,0.03383001,118390.0,118380.0,1.5543158]
[1753596129910,0.03383001,118390.0,118380.0,1.5572758]
[1753596130098,0.03383001,118390.0,118380.0,1.56634759]
[1753596130343,0.03383001,118390.0,118380.0,1.5572758]
[1753596131220,0.01753001,118390.0,118380.0,1.5572758]
[1753596132285,0.01753001,118390.0,118380.0,0.92630502]
[1753596132523,0.01753001,118390.0,118380.0,1.5572758]
[1753596136932,0.01753001,118390.0,118380.0,1.4281158]
[1753596137146,0.01753001,118390.0,118380.0,1.5570758]
[1753596137805,0.01753001,118390.0,118380.0,1.3542358]
[1753596138005,0.01753001,118390.0,118380.0,1.5570758]
[1753596138573,0.01550001,118390.0,118380.0,1.5570758]
[1753596143005,0.01753001,118390.0,118380.0,1.5541158]
[1753596143213,0.04317001,118390.0,118380.0,1.5541158]
[1753596143624,0.01753001,118390.0,118380.0,1.5541158]
[1753596149399,0.01753001,118390.0,118380.0,1.5570558]
[1753596158193,0.04323001,118390.0,118380.0,1.40770678]
[1753596158400,0.05963001,118390.0,118380.0,1.51075678]
[1753596158816,0.05963001,118390.0,118380.0,1.53398678]
[1753596159026,0.05963001,118390.0,118380.0,1.53605678]
[1753596159240,0.03393001,118390.0,118380.0,1.53605678]
[1753596159867,0.01753001,118390.0,118380.0,1.53899678]
[1753596163642,0.01753001,118390.0,118380.0,1.27349678]
[1753596164647,0.01753001,118390.0,118380.0,1.27337678]
[1753596166122,0.01753001,118390.0,118380.0,1.14481678]
[1753596166349,0.01753001,118390.0,118380.0,1.27337678]
[1753596166773,0.05943001,118390.0,118380.0,1.24513678]
[1753596173252,0.05943001,118390.0,118380.0,1.26836678]
[1753596174176,0.05943001,118390.0,118380.0,1.27043678]
[1753596176020,0.03681001,118390.0,118380.0,1.27043678]
[1753596177529,0.03373001,118390.0,118380.0,1.27043678]
[1753596180019,0.03373001,118390.0,118380.0,1.27337678]
[1753596180968,0.03373001,118390.0,118380.0,1.28244857]
[1753596181190,0.03373001,118390.0,118380.0,1.27337678]
[1753596182680,0.03373001,118390.0,118380.0,1.27043678]
[1753596183565,0.01753001,118390.0,118380.0,1.27043678]
[1753596185419,0.01753001,118390.0,118380.0,1.27337678]
[1753596190008,0.01550001,118390.0,118380.0,1.27337678]
[1753596191820,0.01550001,118390.0,118380.0,0.642406]
[1753596192028,0.01550001,118390.0,118380.0,1.27337678]
[1753596193047,0.01550001,118390.0,118380.0,1.29848526]
[1753596201071,0.01550001,118390.0,118380.0,1.29578526]
[1753596205982,1e-08,118390.0,118380.0,1.31168526]
[1753596206403,1e-08,118390.0,118380.0,1.29578526]
[1753596221017,1e-08,118390.0,118380.0,0.66481448]
[1753596221229,1e-08,118390.0,118380.0,1.29578526]
[1753596236384,1e-08,118390.0,118380.0,1.31188526]
[1753596237220,1e-08,118390.0,118380.0,1.66131967]
[1753596237864,1e-08,118390.0,118380.0,2.00131967]
[1753596238070,1e-08,118390.0,118380.0,2.26681967]
[1753596238296,1e-08,118390.0,118380.0,2.27351967]
[1753596240073,1e-08,118390.0,118380.0,2.26951967]
[1753596240510,1e-08,118390.0,118380.0,2.27451967]
[1753596252361,1e-08,118390.0,118380.0,2.24941119]
[1753596257796,1e-08,118390.0,118380.0,2.27465894]
[1753596270498,0.0319,118410.0,118390.0,0.19482835]
[1753596270745,0.0167847,118410.0,118400.0,1.05726446]
[1753596270980,0.0188447,118410.0,118400.0,1.05515298]
[1753596271177,0.0344447,118410.0,118400.0,1.05515298]
[1753596272755,0.0510447,118410.0,118400.0,1.05515298]
[1753596273419,0.0344447,118410.0,118400.0,1.07816298]
[1753596273636,0.0183447,118410.0,118400.0,1.08032298]
[1753596274973,0.0183447,118410.0,118400.0,1.28312298]
[1753596276031,0.0183447,118410.0,118400.0,1.54862298]
[1753596277210,0.0183447,118410.0,118400.0,1.55178298]
[1753596279981,0.0006847,118410.0,118400.0,1.55178298]
[1753596285001,0.0027447,118410.0,118400.0,1.55178298]
[1753596285190,0.0006847,118410.0,118400.0,1.55178298]
[1753596285803,0.0006847,118410.0,118400.0,1.56758298]
[1753596287117,0.0006847,118410.0,118400.0,1.56858298]
[1753596287567,0.0006847,118410.0,118400.0,1.56958298]
[1753596292754,0.0006847,118410.0,118400.0,1.55378298]
[1753596303104,0.0006847,118410.0,118400.0,0.9228122]
[1753596303301,0.0006847,118410.0,118400.0,1.55378298]
[1753596306847,0.0336147,118410.0,118400.0,1.52545298]
[1753596307224,0.0528647,118410.0,118400.0,1.52545298]
[1753596307834,0.0366747,118410.0,118400.0,1.52545298]
[1753596308304,0.0366747,118410.0,118400.0,1.19251857]
[1753596308305,0.0528647,118410.0,118400.0,1.19251857]
[1753596311437,0.0528647,118410.0,118400.0,0.92701857]
[1753596311654,0.0366747,118410.0,118400.0,0.92701857]
[1753596311859,0.0336147,118410.0,118400.0,0.95151857]
[1753596312786,0.0336147,118410.0,118400.0,0.82351857]
[1753596312975,0.0336147,118410.0,118400.0,0.95151857]
[1753596313197,0.0528647,118410.0,118400.0,0.92701857]
[1753596313919,0.0366747,118410.0,118400.0,0.92701857]
[1753596314126,0.0366747,118410.0,118400.0,0.95151857]
[1753596314333,0.0336147,118410.0,118400.0,0.95151857]
[1753596315031,0.0336147,118410.0,118400.0,0.82351857]
[1753596315236,0.0336147,118410.0,118400.0,0.95147857]
[1753596315408,0.0336147,118410.0,118400.0,0.82351857]
[1753596315611,0.0336147,118410.0,118400.0,0.95147857]